Cogmind - Beta 10.2 @@@ ROGUE MODE // 2021.08.08 @ 11:50:12 Player: Akillian Result: Destroyed self via exploding Nuclear Reactor Performance ------------- Evolutions (0) 0 Regions Visited (1) 200 Robots Destroyed (17) 85 Value Destroyed (373) 373 Prototype IDs (0) 0 Alien Tech Used (0) 0 Bonus (0) 0 TOTAL SCORE: 658 Bonus ------- None Cogmind --------- Core Integrity 0/250 Matter 221/300 Energy 100/100 System Corruption 0% Temperature Cool (0) Movement Rolling (100) Location -10/Materials Parts ------- > --- POWER (1) -------- (None) > --- PROPULSION (2) --- Compact Wheel > --- UTILITY (2) ------ Signal Interpreter Targeting Computer > --- WEAPON (2) ------- Grenade Launcher Datajack > --- INVENTORY (4) ---- Light Treads Light Assault Rifle Datajack Mining Claw Peak State ------------ > --- POWER ------------ Light Ion Engine > --- PROPULSION ------- Light Treads Compact Wheel > --- UTILITY ---------- Targeting Computer > --- WEAPON ----------- Light Assault Rifle Datajack > --- INVENTORY -------- Small Laser Light Assault Rifle Grenade Launcher [Rating: 6] Favorites ----------- Power Light Ion Engine Engine Light Ion Engine Propulsion Compact Wheel Treads Light Treads Wheel Compact Wheel Utility Targeting Computer Processor Targeting Computer Weapon Light Assault Rifle Energy Gun Medium Laser Ballistic Gun Light Assault Rifle Launcher Grenade Launcher Special Melee Weapon Datajack Build | -11 -10 ------- Run | Scr Mat Slots Evolved . | . . Power . | . . Propulsion . | . . Utility . | . . Weapon . | . . Parts Attached 24 | 5 19 Power 2 | 1 1 Engine 2 | 1 1 Core . | . . Reactor . | . . Propulsion 8 | 2 6 Treads 3 | . 3 Leg . | . . Wheel 5 | 2 3 Hover . | . . Flight . | . . Utility 2 | . 2 Device . | . . Storage . | . . Processor 2 | . 2 Hackware . | . . Protection . | . . Artifact . | . . Weapon 12 | 2 10 Energy Gun 3 | 1 2 Energy Cannon . | . . Ballistic Gun 4 | 1 3 Ballistic Cannon . | . . Launcher 2 | . 2 Special Weapon . | . . Impact Weapon . | . . Slashing Weapon . | . . Piercing Weapon . | . . Special Melee Weapon 3 | . 3 Unidentified Prototypes . | . . Parts Lost 10 | . 10 Power 2 | . 2 Propulsion 4 | . 4 Utility . | . . Weapon 4 | . 4 Highest Loss Streak 6 | . 6 Average Slot Usage (%) 64 | . 64 Engine 3 | . 3 Treads 2 | . 2 Wheel 17 | . 17 Processor 14 | . 14 Energy Gun 1 | . 1 Ballistic Gun 13 | . 13 Launcher 5 | . 5 Special Melee Weapon 4 | . 4 Naked Turns . | . . Heaviest Build 6 | 6 6 Greatest Support 40 | 26 40 Greatest Overweight (x) . | . . Average Overweight (x) . | . . Largest Inventory Capacity 4 | 4 4 Average Capacity 4 | 4 4 Most Carried 4 | 4 4 Average Carried 3 | 3 3 Final Capacity 4 | 4 4 Final Carried 4 | 4 4 Class Distribution -------------------- 100% | Mutant Dominant Class ---------------- Mutant | -10/Materials Resources | -11 -10 ----------- Run | Scr Mat Matter Collected 436 | 244 192 Remotely . | . . Salvage Created 364 | . 364 Parts 28 | . 28 Haulers Intercepted . | . . Recyclers Shooed 1 | . 1 Parts Field Recycled . | . . Retrieved Matter . | . . Parts Self-Destructed . | . . Prevented . | . . Kills | -11 -10 ------- Run | Scr Mat Combat Hostiles Destroyed 16 | . 16 Guns 14 | . 14 AOE 2 | . 2 Classes Destroyed 3 | . 3 Builder 1 | . 1 Swarmer 9 | . 9 Grunt 7 | . 7 Best Kill Streak 4 | . 4 Combat Bots Only 4 | . 4 Max Kills in Single Turn 2 | . 2 Gunslinging . | . . Exploded 1 | . 1 Melee . | . . Uniques/NPCs Destroyed . | . . Combat | -11 -10 -------- Run | Scr Mat Damage Taken 962 | . 962 Core 287 | . 287 Absorbed by Shields . | . . Core Remaining (%) 100 | 100 . Volleys Fired 74 | . 74 Largest 2 | . 2 Hottest 70 | . 70 Shots Fired 106 | . 106 Gun 101 | . 101 Cannon . | . . Launcher 5 | . 5 Special . | . . Kinetic 80 | . 80 Thermal 21 | . 21 Explosive 5 | . 5 Electromagnetic . | . . Robot Hit Streak 10 | . 10 Robot Miss Streak 5 | . 5 Penetration Max . | . . Secondary Targets 3 | . 3 Max Gunslinging Chain 1 | . 1 Shots Hit Robots 62 | . 62 Core Hits 33 | . 33 Critical Hits 1 | . 1 Critical Kills 1 | . 1 Critical Parts Destroyed . | . . Melee Attacks 5 | . 5 Impact . | . . Slashing . | . . Piercing . | . . Sneak Attacks 2 | . 2 Combat Hostiles . | . . Follow-up Attacks . | . . Damage Inflicted 870 | . 870 Guns 500 | . 500 Cannons . | . . Explosions 368 | . 368 Melee . | . . Ramming 2 | . 2 Kinetic 316 | . 316 Thermal 184 | . 184 Explosive 368 | . 368 Electromagnetic . | . . Impact . | . . Slashing . | . . Piercing . | . . Highest Corruption . | . . Average Corruption . | . . Corruption Purged . | . . Overload Shots . | . . Overflow Damage 44 | . 44 Projectiles . | . . Explosions 44 | . 44 Melee . | . . Knockbacks . | . . Impact . | . . Kinetic . | . . Secondary . | . . Self-Inflicted Damage 84 | . 84 Shots 1 | . 1 Rammed 2 | . 2 Targets Rammed 2 | . 2 Kicked . | . . Crushed . | . . Highest Temperature 110 | . 110 Average Temperature 33 | . 33 Received Heat Transfer 228 | . 228 Siege Activations . | . . Robots Corrupted . | . . Combat Hostiles . | . . Parts Fried . | . . Impact Corruptions . | . . Robots Melted . | . . Combat Hostiles . | . . Parts Melted . | . . Heat Transferred 460 | . 460 Parts Sabotaged . | . . Parts Stolen . | . . Parts Stripped . | . . Power Chain Reactions . | . . Missiles Intercepted . | . . Alert | -11 -10 ------- Run | Scr Mat Peak Influence 310 | . 310 Initial . | . . Average 133 | . 151 Maximum Alert Level 1 | . 1 Low Security (%) 72 | 100 69 Level 1 27 | . 30 Level 2 . | . . Level 3 . | . . Level 4 . | . . Level 5 . | . . High Security . | . . Max Security . | . . Squads Dispatched 5 | . 5 Investigation 1 | . 1 Extermination . | . . Reinforcement 4 | . 4 Assault . | . . Garrison . | . . Intercept . | . . Construction Impeded . | . . Haulers Reinforced . | . . Stealth | -11 -10 --------- Run | Scr Mat Distress Signals 6 | . 6 Communications Jammed . | . . Distress Signals . | . . Times Spotted 33 | . 33 Peak Tracking Total 6 | . 6 Tactical Retreats . | . . Traps | -11 -10 ------- Run | Scr Mat Traps Triggered 1 | . 1 Indirectly . | . . Trap Hack Attempts . | . . Triggered . | . . Disarmed . | . . Reprogrammed . | . . Reused . | . . Traps Extracted . | . . Installed . | . . Triggered . | . . Machines | -11 -10 ---------- Run | Scr Mat Machines Disabled 4 | . 4 Max in Single Turn 2 | . 2 Machines Sabotaged . | . . Garrisons Compromised . | . . Overloaded Fab Kills . | . . Fab Network Shutdowns . | . . Hacking | -11 -10 --------- Run | Scr Mat Machines Accessed 1 | . 1 Terminals 1 | . 1 Fabricators . | . . Repair Stations . | . . Recycling Units . | . . Scanalyzers . | . . Garrison Access . | . . Total Hacks 2 | . 2 Successful 2 | . 2 Failed . | . . Catastrophic . | . . Database Lockouts . | . . Manual . | . . Terminals 2 | . 2 Fabricators . | . . Repair Stations . | . . Recycling Units . | . . Scanalyzers . | . . Garrison Access . | . . Terminal Hacks 2 | . 2 Alert Level 1 | . 1 Locate Traps 1 | . 1 Fabricator Hacks . | . . Repair Station Hacks . | . . Recycling Unit Hacks . | . . Scanalyzer . | . . Garrison Access Hacks . | . . Unauthorized Hacks . | . . Terminals . | . . Fabricators . | . . Repair Stations . | . . Recycling Units . | . . Scanalyzers . | . . Garrison Access . | . . Data Cores Recovered . | . . Used . | . . Hacking Detections 1 | . 1 Full Trace Events . | . . Feedback Events . | . . Feedback Blocked . | . . Robot Schematics Acquired . | . . Robots Built . | . . Matter . | . . Time . | . . Total Robot Build Rating . | . . Part Schematics Acquired . | . . Parts Built . | . . Matter . | . . Time . | . . Total Part Build Rating . | . . Parts Repaired . | . . Time . | . . Parts Recycled . | . . Recycled Matter . | . . Retrieved Matter . | . . Retrieved Components . | . . Parts Scanalyzed . | . . Part Schematics Acquired . | . . Parts Damaged . | . . Bothacking | -11 -10 ------------ Run | Scr Mat Used RIF Installer . | . . Robots Hacked 2 | . 2 Non-combat 2 | . 2 Combat . | . . Robot Hacks Applied 3 | . 3 parse_system 2 | . 2 no_distress 1 | . 1 Relay Couplers Released . | . . Robots Rewired . | . . Allies Hacked . | . . Hacks Repelled . | . . Allies | -11 -10 -------- Run | Scr Mat Total Allies . | . . Largest Group . | . . Highest-Rated Group . | . . Highest-Rated Ally . | . . Total Orders . | . . Ally Attacks . | . . Total Damage . | . . Kills . | . . Allies Corrupted . | . . Allies Melted . | . . Intel | -11 -10 ------- Run | Scr Mat Robot Analysis Total . | . . Derelict Logs Recovered . | . . Drone Launches . | . . Drone Recoveries . | . . Exploration | -11 -10 ------------- Run | Scr Mat Turns Passed 603 | 71 532 Spaces Moved 375 | 65 310 Core 13 | 10 3 Treads 17 | . 17 Legs . | . . Wheels 345 | 55 290 Hover . | . . Flight . | . . Fastest Speed 50 | 50 50 Average Speed 99 | 83 102 Slowest Speed 160 | 90 160 Overloaded Moves . | . . Propulsion Burnouts . | . . Robots Hopped . | . . Cave-ins Triggered . | . . Exploration Rate (%) 23 | 3 44 Regions Visited 1 Branch Regions . Pre-discovered Areas . | . . Known Exits Taken . | . . Unknown Exits Taken 1 | 1 . Scrap Searched . | . . Spaces Dug . | . . Terrain Destroyed 37 | . 37 Melee . | . . Projectile . | . . AOE 37 | . 37 Terrain Rammed . | . . Walls Destroyed . | . . Machines Disabled . | . . Actions | -11 -10 --------- Run | Scr Mat Total 511 | 82 429 Wait . | . . Move 374 | 64 310 Hop . | . . Pick Up 25 | 11 14 Fast Attach . | . . Attach 17 | 5 12 Detach 1 | . 1 Swap 7 | . 7 Drop 6 | 2 4 Fire 74 | . 74 Melee 5 | . 5 Ram 2 | . 2 Kick . | . . Crush . | . . Escape Stasis . | . . Rewire . | . . Trap . | . . Miscellaneous . | . . Route ------- -11/Scrapyard -10/Materials (discovered 1 exit: [*Mat]) History --------- Turn | Location | Event 2 | -11/Scrapyard | Met Revision 17 8 | -11/Scrapyard | Discovered new exit (range 16) 72 | -11/Scrapyard | Entered Materials 177 | -10/Materials | Lost 6 parts (1p2n3w) 250 | -10/Materials | Core integrity fell below 50% 301 | -10/Materials | Build established: Mutant 390 | -10/Materials | Core integrity fell below 20% 408 | -10/Materials | Discovered new exit (range 15) 604 | -10/Materials | Destroyed self via exploding Nuclear Reactor Last Messages --------------- U-05 Engineer lays Concrete. U-05 Engineer builds a Door. U-05 Engineer lays Concrete. U-05 Engineer builds a Wall. Acquired Mining Claw. Dropped Grenade Launcher. Acquired Grenade Launcher. R-06 Scavenger collects Grenade Launcher. Triggered Alarm Trap. An alarm sounds. ALERT: Alarm triggered, dispatching investigation squad. ALERT: Hostiles spotted, dispatching reinforcements to Terminal M004. W-16 Scout sends out distress signal. U-05 Engineer lays Concrete. Nuclear Reactor explodes. G-34 Mercenary destroyed. Nuclear Reactor explodes. Destroyed Welding Torch. U-05 Engineer destroyed. [Achievement: First Step to Greatness] Map ----- +----------------------------------------------------+ | | | | | | | | | | | | | | | ??????????????????????????????????????????? | | ??????????????????????????????????????????? | | ????????????####??????????????????????????? | | ????????????# ??????????????????????????? | | ????????????# ??????????????????????????? | | ????????????# #?????????????????????????? | | ????????????? #?????????????????????????? | | ????????????? #?????????????????????????? | | ?????????????? #?????????????????????????? | | ?????????????? #?????????????????????????? | | ???????????####+######+#######????????????? | | ???????????# #????????????? | | ???????????+ #????????????? | | ???????????# #????????????? | | ???????????### ###### # #????????????? | | ?????????????# # #????????????? | | ?????????????# + ! w#????????????? | | ???#+????????# # %= g ########### ?? | | ???# #?####### # @=!% g ? | | ???# + g ? | | ???# #?######### # k u ? | | ???# #?????????# # ##########???? | | ???# #?????????# # #????????????? | | ???# ############# # #????????????? | | ???# #????????????? | | ???# ############ #????????????? | | ???# #??????????# #????????????? | | ???# #??????????# #????????????? | | ???# ##########?????????? #???????????? | | ???# #??????????????????? #???????????? | | ???# #????????????? ?? ???????????? | | ???# #????????????? ??????????? | | ???# #######??????# # ?????????? | | ???# #??????# ### ### !????????? | | ???# #??????# #?# #?? !#???????? | | ???# #??????# #?# #???!##???????? | | ???# """ #??????# ###+#######???????? | | ???# """ #??????# # #???????? | | ???# """ #??????# #"" #??###+## | | ?### #????" # #"Y """ #??? | | ?# #?? # #"" """ #??? | | ?# # ! # # """ #???""" " | | ?# / # # """ #????"" " | +----------------------------------------------------+ Best States ------------- Heat Dissipation 25 Energy Generation 10 Energy Capacity 125 Matter Stores 294 Matter Capacity 300 Sight Range 16 Terrain Scan Density 10 Evasion (%) 50 Targeting Accuracy 5 Recoil Reduction 2 Item Schematics ----------------- None Robot Schematics ------------------ None Fabricated ------------ Nothing Alien Tech Used ----------------- None Achievements -------------- First Step to Greatness Challenges ------------ None Game ------ Seed RefineryReflectiveBay Manual? 0 Play Time 00:17:03 Cumulative 0.5 hours Start 2021.08.08 @ 11:34:33 End 2021.08.08 @ 11:50:12 Sessions 1 Manual Loads 0 Difficulty Rogue Special Mode None Game No. 3 Rogue 3 Adventurer 0 Explorer 0 Win Type - Total 0 Types 0/0/0/0/0/0/0/0/0 Lore% 0 Gallery% 2 Achievement% 3 Wizard Run 0 Options --------- ASCII 0 Keyboard 0 Movement Arrows Keybinds 0 Fullscreen 1 Font 18/SmallcapsGlow Map View 76x50 Tactical HUD 0 Map Filters NONE Filters NONE Steam 0 RUN: a2c6d123-0114-4aa9-bfbb-1eb11fcb8fc9